Cogmind - Beta 16 @@@ ROGUE MODE // 2026.01.15 @ 03:01:48 Player: Decinym Result: Destroyed by Decapitator with Experimental Terror Saw Performance ------------- Evolutions (8) 4000 Regions Visited (19) 3800 Robots Destroyed (76) 380 Value Destroyed (2555) 2555 Prototype IDs (65) 1300 Alien Tech Used (2) 400 Bonus (2643) 2643 TOTAL SCORE: 15078 Bonus ------- Follower Combat Kills 60 Registered with UFD 300 Met Optimus in HQ 500 Met Warlord at Base 500 MAIN.C Attacked Warlord 500 Met Optimus at Protoforge 1000 Friendly Fire -217 Cogmind --------- Core Integrity 0/1450 Matter 280/300 Energy 1495/2200 System Corruption 24% Temperature Cool (6) Movement Flying (42) Location -2/Protoforge Parts ------- > --- POWER (3) -------- Hybrid Graviton Reactor > --- PROPULSION (7) --- Impulse Thruster Array Impulse Thruster Array > --- UTILITY (11) ----- 0bPrime Scrap Suit Concept Chromion Battery Experimental Optical Array Experimental Optical Array Advanced Signal Interpreter Experimental Melee Analysis Suite Experimental Core Analyzer Propulsion Shielding Concept Antimissile System > --- WEAPON (2) ------- (None) > --- INVENTORY (5) ---- (None) Peak State ------------ > --- POWER ------------ Light Ion Engine Fusion Reactor Compact Particle Reactor > --- PROPULSION ------- Cooled Nuclear Pulse Thruster Cooled Nuclear Pulse Thruster Cooled Nuclear Pulse Thruster Impulse Thruster Diametric Drive Electron Diverter Cooled Impulse Thruster Cooled Impulse Thruster > --- UTILITY ---------- Experimental Power Amplifier Experimental Cooling System Advanced Weight Redist. System Spectral Analyzer Experimental Cloaking Device Experimental Utility Shielding Enhanced Scrap Shield Experimental Hacking Suite Advanced System Shield Rainbow Chip > --- WEAPON ----------- Heavy Quantum Rifle Compact HERF Cannon Vortex Lance > --- INVENTORY -------- Q-thruster Advanced Reaction Control System System Mapper Transdimensional Reconstructor Tactical Quantum Warhead [Rating: 198] Favorites ----------- Power Ion Engine Engine Ion Engine Power Core Neutrino Core Reactor Fusion Reactor Propulsion Light Treads Treads Light Treads Leg Experimental Biometal Leg Wheel Armored Wheel Flight Unit Cooled Nuclear Pulse Thruster Utility Large Storage Unit Device Advanced Weight Redist. System Storage Large Storage Unit Processor Advanced Signal Interpreter Hackware Advanced System Shield Protection Improved Light Armor Plating Weapon Subdweller Machine Gun Energy Gun Gatling Laser Energy Cannon Beam Cannon Ballistic Gun Subdweller Machine Gun Ballistic Cannon Battle Cannon Launcher Heavy Rocket Launcher Special Weapon CPS Tube Impact Weapon Makeshift Hammer Slashing Weapon Ripper Piercing Weapon Lance Special Melee Weapon Advanced Datajack Build | -11 -10 -10 -7 -7 -5 -5 -5 -5 -4 -4 -4 -4 -4 -3 -3 -3 -2 -2 -2 ------- Run | Yrd Mat Sub Rec Scr Fac Upp Upp Zhi Pro Fac Upp Upp War Pro Res Tes Res Qua Frg Slots Evolved 15 | . . . . . 10 . . . . 2 . . . . 2 . 1 . . Power 1 | . . . . . 1 . . . . . . . . . . . . . . Propulsion 5 | . . . . . 2 . . . . 2 . . . . 1 . . . . Utility 9 | . . . . . 7 . . . . . . . . . 1 . 1 . . Weapon . | . . . . . . . . . . . . . . . . . . . . Parts Attached 152 | 1 7 15 4 9 15 5 3 7 . 7 . 1 8 1 9 10 2 9 39 Power 20 | . 1 1 . 1 1 1 . 1 . 1 . . . . 3 . 1 1 8 Engine 8 | . 1 1 . 1 1 1 . . . . . . . . 1 . . . 2 Core 1 | . . . . . . . . . . . . . . . . . . . 1 Reactor 11 | . . . . . . . . 1 . 1 . . . . 2 . 1 1 5 Propulsion 32 | . 2 2 1 3 1 1 . 3 . 4 . . 1 . 2 3 . 2 7 Treads 6 | . 2 2 1 1 . . . . . . . . . . . . . . . Leg 4 | . . . . . . . . . . . . . . . . . . . 4 Wheel 2 | . . . . 2 . . . . . . . . . . . . . . . Hover . | . . . . . . . . . . . . . . . . . . . . Flight 20 | . . . . . 1 1 . 3 . 4 . . 1 . 2 3 . 2 3 Utility 62 | . 1 2 3 3 9 2 2 3 . 1 . 1 5 1 3 3 1 6 16 Device 28 | . . 2 . 1 3 1 2 1 . 1 . 1 4 1 2 2 . 1 6 Storage 5 | . 1 . . 1 . . . . . . . . . . . 1 . 1 1 Processor 10 | . . . . . 2 . . . . . . . 1 . . . . 2 5 Hackware 7 | . . . . . 2 . . 1 . . . . . . 1 . 1 2 . Protection 12 | . . . 3 1 2 1 . 1 . . . . . . . . . . 4 Artifact . | . . . . . . . . . . . . . . . . . . . . Weapon 38 | 1 3 10 . 2 4 1 1 . . 1 . . 2 . 1 4 . . 8 Energy Gun 9 | 1 . 1 . 2 1 . . . . . . . . . . 2 . . 2 Energy Cannon 4 | . 1 1 . . . . . . . . . . . . 1 1 . . . Ballistic Gun 9 | . 1 4 . . 1 . . . . 1 . . . . . . . . 2 Ballistic Cannon 1 | . . 1 . . . . . . . . . . . . . . . . . Launcher 3 | . 1 1 . . 1 . . . . . . . . . . . . . . Special Weapon 3 | . . . . . 1 . 1 . . . . . 1 . . . . . . Impact Weapon 1 | . . 1 . . . . . . . . . . . . . . . . . Slashing Weapon 2 | . . 1 . . . . . . . . . . . . . . . . 1 Piercing Weapon 5 | . . . . . . 1 . . . . . . 1 . . 1 . . 2 Special Melee Weapon 1 | . . . . . . . . . . . . . . . . . . . 1 Unidentified Prototypes 34 | . . . . . 1 1 . 2 . . . . 8 . 1 4 . 3 14 Parts Lost 52 | . . 5 . . 9 . . . . . . . . . . 2 1 4 31 Power 10 | . . 1 . . 1 . . . . . . . . . . . 1 1 6 Propulsion 13 | . . 2 . . 2 . . . . . . . . . . 1 . 1 7 Utility 21 | . . 1 . . 4 . . . . . . . . . . 1 . 2 13 Weapon 8 | . . 1 . . 2 . . . . . . . . . . . . . 5 Highest Loss Streak 18 | . . 3 . . 7 . . . . . . . . . . 1 1 2 18 To Critical Strikes . | . . . . . . . . . . . . . . . . . . . . Average Backups 11 | 6 8 12 11 20 10 4 3 3 2 3 4 4 4 5 4 5 7 7 3 Power . | 1 1 . . . . . . . . . . . . . . . 1 . . Propulsion 2 | 4 4 3 2 3 . . . . . . . . . 1 . . 1 1 . Utility 3 | . . 2 3 7 2 . . . . 1 2 2 2 3 2 2 2 3 1 Weapon 4 | 1 3 6 5 7 5 2 2 2 1 1 1 1 . . . . 1 1 . Tool/Special . | . . . . . . . . . . . . . . . . . . . . Unused Backups 37 | . 5 7 . 10 3 . . . . . . . . . . 2 . 4 6 Power 3 | . 2 . . . . . . . . . . . . . . . . 1 . Propulsion 7 | . 1 2 . 2 . . . . . . . . . . . 1 . 1 . Utility 12 | . 1 1 . 5 1 . . . . . . . . . . . . 1 3 Weapon 13 | . 1 4 . 3 2 . . . . . . . . . . 1 . . 2 Tool/Special 2 | . . . . . . . . . . . . . . . . . . 1 1 Average Slot Usage (%) 85 | . 85 96 100 88 63 49 54 61 76 80 86 86 87 91 95 92 88 83 71 Engine 9 | . 14 13 14 14 4 4 4 4 4 3 . . . . 3 4 3 . 1 Reactor 1 | . . . . . . . . 1 4 4 8 8 8 8 8 7 7 7 4 Treads 13 | . 16 28 28 16 13 . . . . . . . . . . . . . . Leg 1 | . 11 . . . . . . . . . . . . . . . . . 5 Wheel 3 | . . . . 11 3 . . . . . . . . . . . . . . Flight 7 | . . . . . . 8 9 13 19 24 30 30 30 30 32 30 26 25 10 Device 7 | . . 10 7 . 8 6 12 12 9 8 8 8 10 17 17 15 15 16 12 Storage 8 | . 14 14 14 14 4 . . . . . . . . . . . 3 3 2 Processor 3 | . . . . . 2 9 9 9 9 8 8 8 8 8 8 8 7 5 13 Hackware 3 | . . . . . 5 9 9 10 14 13 13 13 10 4 6 8 9 12 6 Protection 5 | . . . 6 9 5 8 5 5 9 8 8 8 8 8 8 7 5 3 5 Energy Gun 5 | . 9 3 . 13 9 . . . . . . . . . . . . . . Energy Cannon 1 | . 4 5 . . . . . . . . . . . . 1 2 . . . Ballistic Gun 8 | . 13 16 28 7 . . . . . 3 4 4 2 . . . . . 1 Piercing Weapon 1 | . . . . . . . . 1 4 4 4 4 5 8 8 8 7 5 2 Peak Build Rating 198 | 6 7 16 17 29 62 76 79 112 115 141 141 141 162 162 188 198 195 198 192 Average Rating 64 | 6 6 13 13 21 42 67 74 88 112 130 141 141 146 162 184 186 192 184 148 On Entrance 98 | 6 6 7 13 17 25 56 70 77 112 112 141 141 141 162 162 188 184 194 162 Avg Prop Armor Cover (%) 7 | . . . . 11 8 . . . . . . 1 1 . . . . . 1 Naked Turns . | . . . . . . . . . . . . . . . . . . . . Heaviest Build 103 | 14 30 35 40 103 48 28 30 40 38 49 49 49 58 58 66 65 68 65 86 Greatest Support 110 | 20 40 40 40 43 63 28 28 40 40 59 59 59 59 59 75 68 68 71 110 Greatest Overweight (x) 8 | . . . . 8 1 . 1 1 . . . . . . . . . . 3 Average Overweight (x) . | . . . . 5 . . . . . . . . . . . . . . . Largest Inventory Capacity 25 | 8 15 15 15 25 15 5 5 5 5 5 5 5 5 5 5 10 10 10 10 Average Capacity 13 | 8 12 15 15 23 13 5 5 5 5 5 5 5 5 5 5 6 10 10 7 Most Carried 25 | 6 11 15 15 25 15 5 5 5 5 5 5 5 5 5 5 10 10 10 10 Average Carried 12 | 6 8 13 12 21 11 4 4 4 4 4 5 5 4 5 4 5 9 9 4 Final Capacity 15 | 8 15 15 15 15 5 5 5 5 5 5 5 5 5 5 5 10 10 10 5 Final Carried 15 | 6 11 11 15 15 5 5 5 5 5 5 5 5 5 5 5 10 10 9 . Scrap Suit Usage (%) 1 | . . . . . . . . . . . . . . . . . . . 14 Parts Cannibalized 2 | . . . . . . . . . . . . . . . . . . . 2 Class Distribution -------------------- 57% | Mutant 19% | Hacker-Sprinter 12% | Scavenger-Mutant 4% | Hacker-Mutant Dominant Class ---------------- Mutant | -10/Materials Mutant | -10/Subcaves Scavenger-Mutant | -7/Recycling Mutant | -7/Scraptown Mutant | -5/Factory Hacker-Mutant | -5/Upper Caves Hacker-Mutant | -5/Upper Caves Hacker-Mutant | -5/Zhirov Hacker-Sprinter | -4/Proximity Caves Hacker-Sprinter | -4/Factory Hacker-Sprinter | -4/Upper Caves Hacker-Sprinter | -4/Upper Caves Hacker-Sprinter | -4/Warlord Sprinter | -3/Proximity Caves Sprinter | -3/Research Hacker-Sprinter | -3/Testing Hacker-Sprinter | -2/Research Hacker-Sprinter | -2/Quarantine Scavenger-Mutant | -2/Protoforge Resources | -11 -10 -10 -7 -7 -5 -5 -5 -5 -4 -4 -4 -4 -4 -3 -3 -3 -2 -2 -2 ----------- Run | Yrd Mat Sub Rec Scr Fac Upp Upp Zhi Pro Fac Upp Upp War Pro Res Tes Res Qua Frg Matter Collected 2772 | 200 183 416 92 50 183 142 37 . 176 . 80 10 . 130 60 114 88 160 651 Remotely . | . . . . . . . . . . . . . . . . . . . . Salvage Created 4257 | . 311 462 146 . 329 . 12 . 22 . 315 513 . 54 553 356 232 172 780 Parts 164 | . 15 31 4 . 9 . 1 . 2 . 6 7 . . 24 10 7 7 41 Haulers Intercepted 8 | . 2 . . . . . . . . . . . . . 2 1 2 1 . Recyclers Shooed 3 | . 2 . . . . . . . . . . . . . . 1 . . . Parts Field Recycled . | . . . . . . . . . . . . . . . . . . . . Retrieved Matter . | . . . . . . . . . . . . . . . . . . . . Parts Self-Destructed 14 | . . 11 . . . . . . 3 . . . . . . . . . . Prevented 2 | . . . . . . . 2 . . . . . . . . . . . . Parts Restored . | . . . . . . . . . . . . . . . . . . . . Kills | -11 -10 -10 -7 -7 -5 -5 -5 -5 -4 -4 -4 -4 -4 -3 -3 -3 -2 -2 -2 ------- Run | Yrd Mat Sub Rec Scr Fac Upp Upp Zhi Pro Fac Upp Upp War Pro Res Tes Res Qua Frg Combat Hostiles Destroyed 45 | . 6 13 1 . 10 . . . 4 . . . . . . . . . 11 Melee 2 | . . . . . . . . . . . . . . . . . . . 2 Guns 21 | . 3 6 1 . 3 . . . . . . . . . . . . . 8 Cannons 4 | . . 4 . . . . . . . . . . . . . . . . . AOE 17 | . 3 3 . . 7 . . . 4 . . . . . . . . . . Classes Destroyed 21 | . 4 3 1 . 4 . . . . . 1 . . . 3 . . . 5 Worker 5 | . . . . . . . . . . . . . . . 1 . 1 . 3 Builder 1 | . . . . . . . . . . . . . . . 1 . . . . Tunneler 1 | . . . . . . . . . . . . . . . 1 . . . . Hauler 8 | . 2 . . . . . . . . . . . . . 2 1 2 1 . Recycler 6 | . 1 . 1 . . . . . . . . . . . 2 2 . . . Operator 1 | . . . . . . . . . . . . . . . . . . . 1 Drone 3 | . . . . . . . . . . . . . . . . . . . 3 Turret 2 | . . 2 . . . . . . . . . . . . . . . . . Watcher 7 | . . . . . 1 . . . . . . . . . 2 . 1 2 1 Swarmer 15 | . 3 4 . . 4 . . . 4 . . . . . . . . . . Saboteur 2 | . . . . . . . . . . . . . . . . . . . 2 Grunt 9 | . 3 2 . . 2 . . . . . . . . . . . . . 2 Brawler 2 | . . . . . 1 . . . . . . . . . . . . . 1 Sentry 1 | . . . 1 . . . . . . . . . . . . . . . . Programmer 3 | . . . . . 2 . . . . . . . . . . . . . 1 Behemoth 1 | . . . . . 1 . . . . . . . . . . . . . . Overlord 1 | . . . . . . . . . . . . . . . . . . . 1 Striker 1 | . . . . . . . . . . . . . . . . . . . 1 Artisan 1 | . . 1 . . . . . . . . . . . . . . . . . Subdweller 7 | . . 7 . . . . . . . . . . . . . . . . . Packrat 4 | . . . . . . . . . . . 3 . . 1 . . . . . Samaritan 7 | . . . . . . . . . . . 3 4 . . . . . . . Best Kill Streak 8 | . 3 4 2 . 7 . . . 4 . . . . . 8 1 4 1 6 Combat Bots Only 7 | . 3 4 1 . 7 . . . 4 . . . . . . . . . 6 Max Kills in Single Turn 3 | . 2 1 1 . 3 . . . 3 . 1 1 . 1 1 1 1 1 1 Gunslinging . | . . . . . . . . . . . . . . . . . . . . Exploded 3 | . 2 1 . . 3 . . . 3 . . . . . . . . . . Melee 1 | . . . . . . . . . . . . . . . . . . . 1 Uniques/NPCs Destroyed . | . . . . . . . . . . . . . . . . . . . . Combat | -11 -10 -10 -7 -7 -5 -5 -5 -5 -4 -4 -4 -4 -4 -3 -3 -3 -2 -2 -2 -------- Run | Yrd Mat Sub Rec Scr Fac Upp Upp Zhi Pro Fac Upp Upp War Pro Res Tes Res Qua Frg Hostile Shots Fired 952 | . 15 90 6 . 129 . 18 . 2 60 8 . . 2 89 67 20 68 378 Missed 424 | . 5 24 . . 64 . 7 . . 37 5 . . 1 53 39 11 28 150 Hits 528 | . 10 66 6 . 65 . 11 . 2 23 3 . . 1 36 28 9 40 228 Melee 4 | . . . . . . . . . . . . . . . . . . . 4 Projectile 524 | . 10 66 6 . 65 . 11 . 2 23 3 . . 1 36 28 9 40 224 Critical Strikes 21 | . . . . . 2 . . . . . . . . . 2 . . 3 14 Part Disruptions 2 | . . . . . . . . . . . . . . . 2 . . . . Damage Taken 11035 | . 108 1070 66 . 1337 . 191 . 35 437 62 . . 29 762 535 213 971 5219 Core 1977 | . . 191 22 . 168 . . . . 25 . . . . 92 12 18 185 1264 Absorbed by Shields 103 | . . . . . 48 . . . . . . . . . . . . . 55 Redirected to Shielding 162 | . . . . . . . . . . . . . . . 61 . . 70 31 Regen/Repaired (Parts) 27 | . . . . . . . . . . . . . 12 . . . . . 15 Core Remaining (%) 77 | 100 . . . 14 . . . . 83 . . . . 97 . 92 . . . Volleys Fired 184 | . 31 68 5 . 24 . . . 2 . . . . . . . . . 54 Largest 2 | . 2 2 2 . 2 . . . 1 . . . . . . . . . 2 Hottest 160 | . 70 93 60 . 160 . . . 39 . . . . . . . . . 75 Shots Fired 298 | . 60 120 10 . 38 . . . 2 . . . . . . . . . 68 Gun 251 | . 58 82 10 . 33 . . . . . . . . . . . . . 68 Cannon 32 | . . 32 . . . . . . . . . . . . . . . . . Launcher 15 | . 2 6 . . 5 . . . 2 . . . . . . . . . . Special . | . . . . . . . . . . . . . . . . . . . . Kinetic 157 | . 29 83 10 . 2 . . . . . . . . . . . . . 33 Thermal 91 | . 29 31 . . 31 . . . . . . . . . . . . . . Explosive 15 | . 2 6 . . 5 . . . 2 . . . . . . . . . . Electromagnetic 35 | . . . . . . . . . . . . . . . . . . . 35 Robot Hit Streak 21 | . 8 14 11 . 13 . . . 2 . . . . . . . . . 21 Robot Miss Streak 18 | . 5 4 2 . 3 . . . 1 . . . . . . . . . 18 Penetration Max 1 | . . . . . . . . . . . . . . . . . . . 1 Secondary Targets 2 | . . 1 . . . . . . . . . . . . . . . . 1 Max Gunslinging Chain 1 | . . 1 . . . . . . . . . . . . . . . . 1 Shots Hit Robots 256 | . 40 70 6 . 34 . 2 . 1 4 7 10 . 1 12 5 6 9 49 Core Hits 134 | . 14 32 3 . 31 . 1 . 6 . 3 6 . . 6 2 3 3 24 Critical Kills . | . . . . . . . . . . . . . . . . . . . . Critical Parts Destroyed 2 | . . . 1 . . . . . . . . . . . . . . . 1 Critical Strikes 11 | . 1 1 1 . . . . . . 1 . . . . 1 . 3 . 3 Burn 1 | . 1 . . . . . . . . . . . . . . . . . . Destroy 3 | . . 1 1 . . . . . . . . . . . . . . . 1 Impale 7 | . . . . . . . . . . 1 . . . . 1 . 3 . 2 Melee Attacks 283 | . . 2 . . . 2 11 . 123 9 7 10 1 13 23 24 12 36 10 Impact 1 | . . 1 . . . . . . . . . . . . . . . . . Slashing 1 | . . 1 . . . . . . . . . . . . . . . . . Piercing 257 | . . . . . . 2 11 . 123 9 7 10 . 11 18 16 10 30 10 Entropic 24 | . . . . . . . . . . . . . 1 2 5 8 2 6 . Sneak Attacks 34 | . . 1 . . . . . . . 1 7 4 . 1 7 3 3 1 6 Combat Hostiles . | . . . . . . . . . . . . . . . . . . . . Follow-up Attacks 3 | . . . . . . . . . . . . . . . 1 . . 2 . Damage Inflicted 11739 | . 659 1779 138 . 1836 . 178 . 455 258 669 742 . 97 1002 720 487 600 2119 Guns 3860 | . 508 880 138 . 852 . . . . . . . . . . . . . 1482 Cannons 474 | . . 474 . . . . . . . . . . . . . . . . . Explosions 2010 | . 148 371 . . 984 . . . 455 . . . . . . . . . 52 Melee 5378 | . . 54 . . . . 178 . . 258 669 742 . 97 1002 720 487 600 571 Ramming 17 | . 3 . . . . . . . . . . . . . . . . . 14 Kinetic 2523 | . 284 979 138 . 18 . . . . . . . . . . . . . 1104 Thermal 1485 | . 224 375 . . 834 . . . . . . . . . . . . . 52 Explosive 1958 | . 148 371 . . 984 . . . 455 . . . . . . . . . . Electromagnetic 378 | . . . . . . . . . . . . . . . . . . . 378 Impact . | . . . . . . . . . . . . . . . . . . . . Slashing 54 | . . 54 . . . . . . . . . . . . . . . . . Piercing 4459 | . . . . . . . 178 . . 258 669 742 . 97 930 92 487 435 571 Entropic 865 | . . . . . . . . . . . . . . . 72 628 . 165 . Highest Corruption 24 | . . . . . 2 2 2 2 2 2 2 2 2 . 5 14 1 10 24 Average Corruption 8 | . . . . . 1 2 2 2 2 1 2 2 2 . 2 8 1 7 18 Corruption Purged . | . . . . . . . . . . . . . . . . . . . . Corruption Blocked . | . . . . . . . . . . . . . . . . . . . . Effects 109 | . . . . . 3 4 3 . 5 . 1 1 . . 3 13 . 17 59 Message Errors 22 | . . . . . . . 1 . 1 . . . . . 1 2 . 4 13 Matter Fused 24 | . . . . . 2 1 . . . . . . . . 1 1 . 4 15 Heat Flow Errors 12 | . . . . . . . . . . . 1 . . . . 3 . 2 6 Energy Discharges 13 | . . . . . . 1 1 . 2 . . . . . . 1 . 1 7 Parts Rejected 5 | . . . . . . . . . . . . . . . . . . 1 4 Parts Fused 1 | . . . . . . . . . 1 . . . . . . . . . . Data Loss (minor) 14 | . . . . . 1 1 1 . 1 . . 1 . . . 3 . 3 3 Data Loss (major) 2 | . . . . . . 1 . . . . . . . . . . . . 1 Alerts 2 | . . . . . . . . . . . . . . . 1 1 . . . Misdirections 12 | . . . . . . . . . . . . . . . . 2 . 2 8 Weapon Failures 2 | . . . . . . . . . . . . . . . . . . . 2 Overload Shots . | . . . . . . . . . . . . . . . . . . . . Overflow Damage 1673 | . . 14 . . 22 . . . 39 78 326 149 . 74 193 412 76 144 146 Projectiles . | . . . . . . . . . . . . . . . . . . . . Explosions 61 | . . . . . 22 . . . 39 . . . . . . . . . . Melee 1612 | . . 14 . . . . . . . 78 326 149 . 74 193 412 76 144 146 Knockbacks 3 | . . 3 . . . . . . . . . . . . . . . . . Impact . | . . . . . . . . . . . . . . . . . . . . Kinetic 3 | . . 3 . . . . . . . . . . . . . . . . . Secondary . | . . . . . . . . . . . . . . . . . . . . Self-Inflicted Damage 75 | . . 18 . . 57 . . . . . . . . . . . . . . Shots 3 | . . 2 . . 1 . . . . . . . . . . . . . . Rammed 1 | . 1 . . . . . . . . . . . . . . . . . . Targets Rammed 3 | . 1 . . . . . . . . . . . . . . . . . 2 Kicked 2 | . . . . . . . . . . . . . . . . . . . 2 Crushed . | . . . . . . . . . . . . . . . . . . . . Highest Temperature 603 | . 99 4 66 . 356 . . . . 174 162 273 4 . 217 240 . 210 603 Average Temperature 79 | . 28 4 46 . 142 . . . . 86 44 93 2 . 75 67 . 102 199 Received Heat Transfer 2044 | . 48 126 36 . 164 . . . . 51 21 . . 9 48 117 54 90 1280 Effects 5 | . . . . . . . . . . . . . . . . 1 . . 4 Shutdowns 2 | . . . . . . . . . . . . . . . . . . . 2 Energy Bleed 1 | . . . . . . . . . . . . . . . . 1 . . . Interference 1 | . . . . . . . . . . . . . . . . . . . 1 Damage (minor) 1 | . . . . . . . . . . . . . . . . . . . 1 Siege Activations . | . . . . . . . . . . . . . . . . . . . . Martial Activations . | . . . . . . . . . . . . . . . . . . . . Shielding Activations . | . . . . . . . . . . . . . . . . . . . . Robots Disrupted . | . . . . . . . . . . . . . . . . . . . . Combat Hostiles . | . . . . . . . . . . . . . . . . . . . . Robots Corrupted 1 | . . . . . . . . . . . . . . . . . . . 1 Combat Hostiles 1 | . . . . . . . . . . . . . . . . . . . 1 Parts Fried . | . . . . . . . . . . . . . . . . . . . . Impact Corruptions . | . . . . . . . . . . . . . . . . . . . . Robots Melted . | . . . . . . . . . . . . . . . . . . . . Combat Hostiles . | . . . . . . . . . . . . . . . . . . . . Parts Melted 6 | . . 2 . . 3 . . . . . . . . . . . . . 1 Heat Transferred 3119 | . 740 729 . . 1600 . . . . . . . . . . . . . 50 Parts Sabotaged . | . . . . . . . . . . . . . . . . . . . . Parts Stolen . | . . . . . . . . . . . . . . . . . . . . Parts Stripped . | . . . . . . . . . . . . . . . . . . . . Power Chain Reactions 1 | . . . . . . . . . . . . . . . . . . . 1 Alert | -11 -10 -10 -7 -7 -5 -5 -5 -5 -4 -4 -4 -4 -4 -3 -3 -3 -2 -2 -2 ------- Run | Yrd Mat Sub Rec Scr Fac Upp Upp Zhi Pro Fac Upp Upp War Pro Res Tes Res Qua Frg Maximum Alert Level 3 | . . . . . 1 . . . . 1 . . . . 2 3 2 1 . Low Security (%) 84 | 100 100 . 100 . 96 . . . . 96 . . . . 61 16 . 59 100 Level 1 9 | . . . . . 3 . . . . 3 . . . . 22 54 . 40 . Level 2 4 | . . . . . . . . . . . . . . . 15 12 100 . . Level 3 . | . . . . . . . . . . . . . . . . 16 . . . Level 4 . | . . . . . . . . . . . . . . . . . . . . Level 5 . | . . . . . . . . . . . . . . . . . . . . High Security . | . . . . . . . . . . . . . . . . . . . . Max Security . | . . . . . . . . . . . . . . . . . . . . Peak Influence 873 | . 97 . 38 . 340 . . . . 283 . . . . 589 873 651 375 194 Initial 490 | . . . . . . . . . . . . . . . . 330 490 360 112 Average 89 | . 29 . 7 . 17 . . . . 39 . . . . 170 345 554 167 64 Influence Increases 5278 | . 194 215 160 . 451 . 30 . 80 449 45 15 . . 1005 1003 221 707 703 Destroy 0b10 Robot/C 1000 | . 120 160 20 . 200 . . . 80 . . . . . . 260 . . 160 Destroy 0b10 Robot/NC 180 | . 15 . 5 . 5 . . . . . . 15 . . 45 20 20 15 40 Destroy Leader 140 | . 14 10 . . 42 . . . . . . . . . 8 42 6 6 12 Allied During Kill 7 | . . . . . . . . . . . . . . . . 7 . . . Trap Triggered on 0b10 10 | . . . . . . . . . . 10 . . . . . . . . . Successful Hack 325 | . 16 . 14 . 18 . . . . 28 . . . . 57 71 21 68 32 Select Force Hacks 120 | . . . 120 . . . . . . . . . . . . . . . . Disable Machine 210 | . 15 . . . . . . . . . . . . . . 150 . 30 15 Destroy Structure 346 | . 14 . 1 . 96 . . . . 6 . . . . 10 168 9 33 9 Partial Spotted 195 | . . . . . . . . . . 30 . . . . 15 15 30 75 30 Lose Combat Pursuer 2745 | . . 45 . . 90 . 30 . . 375 45 . . . 870 270 135 480 405 Influence Decreases 5110 | . 194 215 154 6 111 216 105 49 80 166 145 96 102 . 416 719 453 1147 736 Entered New Map 1461 | . . . . 6 . 126 25 49 . . 105 36 102 . . 259 383 281 89 Time Decay 2037 | . 194 215 154 . 67 90 80 . 80 139 40 60 . . 166 130 60 206 356 Search Patrol Dispatched 100 | . . . . . . . . . . . . . . . 100 . . . . Lost Part 269 | . . . . . 44 . . . . . . . . . . 20 10 40 155 Lost Ally 55 | . . . . . . . . . . 5 . . . . . 10 . 20 20 Purge Threat 1188 | . . . . . . . . . . 22 . . . . 150 300 . 600 116 Squads Dispatched 44 | . . . . . 8 . . . . 9 . . . . 9 4 3 5 6 Investigation 23 | . . . . . 6 . . . . 5 . . . . 4 . 1 3 4 Extermination 10 | . . . . . 1 . . . . 1 . . . . 3 1 1 2 1 Reinforcement 10 | . . . . . 1 . . . . 3 . . . . 2 3 . . 1 Assault . | . . . . . . . . . . . . . . . . . . . . Garrison 1 | . . . . . . . . . . . . . . . . . 1 . . Intercept . | . . . . . . . . . . . . . . . . . . . . Searches Triggered 1 | . . . . . . . . . . . . . . . 1 . . . . Construction Impeded 1 | . . . . . 1 . . . . . . . . . . . . . . Haulers Reinforced . | . . . . . . . . . . . . . . . . . . . . Active Scanning Responses . | . . . . . . . . . . . . . . . . . . . . Cargo Convoy Interrupts . | . . . . . . . . . . . . . . . . . . . . Stealth | -11 -10 -10 -7 -7 -5 -5 -5 -5 -4 -4 -4 -4 -4 -3 -3 -3 -2 -2 -2 --------- Run | Yrd Mat Sub Rec Scr Fac Upp Upp Zhi Pro Fac Upp Upp War Pro Res Tes Res Qua Frg Distress Signals 18 | . . . . . 1 . . . . 3 . . . . 3 2 1 1 7 Communications Jammed 25 | . . . . . . . . . . . . . . . . . . 3 22 Distress Signals 25 | . . . . . . . . . . . . . . . . . . 3 22 Times Spotted 372 | . 8 17 1 . 30 . 3 . 5 41 3 . . 2 85 33 18 37 89 Peak Tracking Total 21 | . 3 6 1 . 21 . 2 . 5 17 3 . . 2 19 10 12 15 16 Tactical Retreats 53 | . . 2 . . 2 . 2 . . 8 1 . . . 10 4 2 7 15 ECM-based Alert Blocks 4 | . . . . . . . . . . . . . . . . . . . 4 Traps | -11 -10 -10 -7 -7 -5 -5 -5 -5 -4 -4 -4 -4 -4 -3 -3 -3 -2 -2 -2 ------- Run | Yrd Mat Sub Rec Scr Fac Upp Upp Zhi Pro Fac Upp Upp War Pro Res Tes Res Qua Frg Traps Triggered 11 | . . 1 . . . . . . . 1 . . . . . 2 . 3 4 Indirectly . | . . . . . . . . . . . . . . . . . . . . Trap Hack Attempts . | . . . . . . . . . . . . . . . . . . . . Triggered . | . . . . . . . . . . . . . . . . . . . . Disarmed . | . . . . . . . . . . . . . . . . . . . . Reprogrammed 12 | . . . . . . . . . . 6 . . . . . . . 6 . Reused 1 | . . . . . . . . . . 1 . . . . . . . . . Traps Extracted . | . . . . . . . . . . . . . . . . . . . . Installed . | . . . . . . . . . . . . . . . . . . . . Triggered 1 | . . . . . . . . . . 1 . . . . . . . . . Machines | -11 -10 -10 -7 -7 -5 -5 -5 -5 -4 -4 -4 -4 -4 -3 -3 -3 -2 -2 -2 ---------- Run | Yrd Mat Sub Rec Scr Fac Upp Upp Zhi Pro Fac Upp Upp War Pro Res Tes Res Qua Frg Machines Disabled 19 | . 1 2 . . . . . . . . . . 2 . . 11 . 2 1 Max in Single Turn 1 | . 1 1 . . . . . . . . . . 1 . . 1 . 1 1 Garrison Access 7 | . . . . . 1 . . . . 1 . . . . 2 1 1 1 . Machines Repaired . | . . . . . . . . . . . . . . . . . . . . Machines Dismantled . | . . . . . . . . . . . . . . . . . . . . Machines Sabotaged . | . . . . . . . . . . . . . . . . . . . . Overloaded Fab Kills . | . . . . . . . . . . . . . . . . . . . . Hacking | -11 -10 -10 -7 -7 -5 -5 -5 -5 -4 -4 -4 -4 -4 -3 -3 -3 -2 -2 -2 --------- Run | Yrd Mat Sub Rec Scr Fac Upp Upp Zhi Pro Fac Upp Upp War Pro Res Tes Res Qua Frg Machines Accessed 104 | . 2 1 11 8 9 2 . 4 . 13 . . 3 . 13 11 5 12 10 Terminals 40 | . 2 . 5 . 1 . . . . 4 . . . . 4 7 4 8 5 Fabricators 6 | . . . . . 2 . . . . 3 . . . . . 1 . . . Repair Stations 2 | . . . . . . . . . . . . . . . 1 . . . 1 Recycling Units 20 | . . . 4 . 5 . . . . 4 . . . . 4 . . . 3 Scanalyzers 8 | . . . . . . . . . . 1 . . . . 1 2 . 3 1 Garrison Access 8 | . . . . . 1 . . . . 1 . . . . 3 1 1 1 . Total Hacks 319 | . 3 9 33 42 18 5 . 17 . 41 . . 4 . 30 38 11 48 20 Successful 226 | . 1 9 23 42 12 5 . 17 . 27 . . 4 . 13 24 5 29 15 Failed 93 | . 2 . 10 . 6 . . . . 14 . . . . 17 14 6 19 5 Catastrophic 15 | . . . 3 . 2 . . . . 2 . . . . 3 1 2 1 1 Database Lockouts . | . . . . . . . . . . . . . . . . . . . . Manual 112 | . 3 . 9 . 11 . . . . 23 . . . . 13 21 5 16 11 Terminals 126 | . 3 . 11 . 3 . . . . 19 . . . . 11 20 9 38 12 Fabricators 24 | . . . . . 7 . . . . 12 . . . . . 5 . . . Repair Stations 3 | . . . . . . . . . . . . . . . 1 . . . 2 Recycling Units 28 | . . . 4 . 7 . . . . 5 . . . . 7 . . . 5 Scanalyzers 27 | . . . . . . . . . . 4 . . . . 2 11 . 9 1 Garrison Access 16 | . . . . . 1 . . . . 1 . . . . 9 2 2 1 . Terminal Hacks 139 | . . 9 18 42 2 5 . 17 . 7 . . 4 . 4 6 2 18 5 Record 73 | . . 8 18 35 . 4 . 5 . . . . 2 . . . . 1 . Part Schematic 10 | . . . . . 1 . . 4 . . . . . . 1 2 . 2 . Robot Analysis 13 | . . . . 7 . . . 4 . . . . . . . . . 1 1 Prototype ID Bank 4 | . . . . . . . . 4 . . . . . . . . . . . Open Door 5 | . . . . . . 1 . . . . . . 2 . . 1 1 . . Level Access Points 1 | . . . . . . . . . . . . . . . . . . . 1 Branch Access Points 2 | . . . . . 1 . . . . 1 . . . . . . . . . Terminal Index 2 | . . . . . . . . . . . . . . . . . 1 1 . Recycling Unit Index 1 | . . . . . . . . . . . . . . . . . . 1 . Alert Level 7 | . . . . . . . . . . 2 . . . . . 1 . 3 1 Unreport Threat 9 | . . . . . . . . . . 1 . . . . 1 2 . 4 1 Reprogram Traps 2 | . . . . . . . . . . 1 . . . . . . . 1 . Recall Investigation 1 | . . . . . . . . . . 1 . . . . . . . . . Registered Components 1 | . . . . . . . . . . . . . . . . . . 1 . Registered Prototypes 1 | . . . . . . . . . . . . . . . . . . 1 . Zone Layout 6 | . . . . . . . . . . 1 . . . . 2 . . 2 1 Proto ID Catalog 1 | . . 1 . . . . . . . . . . . . . . . . . Fabricator Hacks 4 | . . . . . 1 . . . . 3 . . . . . . . . . Network Status 1 | . . . . . 1 . . . . . . . . . . . . . . Load Schematic 1 | . . . . . . . . . . 1 . . . . . . . . . Build 2 | . . . . . . . . . . 2 . . . . . . . . . Repair Station Hacks 1 | . . . . . . . . . . . . . . . . . . . 1 Refit 1 | . . . . . . . . . . . . . . . . . . . 1 Recycling Unit Hacks . | . . . . . . . . . . . . . . . . . . . . Scanalyzer 20 | . . . . . . . . . . 3 . . . . 1 9 . 6 1 Insert Component 11 | . . . . . . . . . . . . . . . . 6 . 4 1 Analyze 2 | . . . . . . . . . . . . . . . . 1 . 1 . Retrieve Study 7 | . . . . . . . . . . 3 . . . . 1 2 . 1 . Garrison Access Hacks 7 | . . . . . 1 . . . . 1 . . . . 2 1 1 1 . Seal Access 7 | . . . . . 1 . . . . 1 . . . . 2 1 1 1 . Unauthorized Hacks 55 | . 1 . 5 . 8 . . . . 13 . . . . 6 8 2 4 8 Terminals 25 | . 1 . 1 . . . . . . 3 . . . . 2 6 2 4 6 Track 1 | . . . . . . . . . . . . . . . . . . 1 . Assimilate 4 | . 1 . . . . . . . . 1 . . . . . 1 . . 1 Botnet 16 | . . . 1 . . . . . . 2 . . . . 2 3 2 2 4 Detonate 1 | . . . . . . . . . . . . . . . . 1 . . . Disrupt 2 | . . . . . . . . . . . . . . . . 1 . 1 . Operators 1 | . . . . . . . . . . . . . . . . . . . 1 Fabricators 11 | . . . . . 3 . . . . 6 . . . . . 2 . . . Report 1 | . . . . . . . . . . 1 . . . . . . . . . Prioritize 1 | . . . . . . . . . . 1 . . . . . . . . . Liberate 3 | . . . . . 1 . . . . 1 . . . . . 1 . . . Fabnet 2 | . . . . . 1 . . . . 1 . . . . . . . . . Haulers 4 | . . . . . 1 . . . . 2 . . . . . 1 . . . Repair Stations . | . . . . . . . . . . . . . . . . . . . . Recycling Units 19 | . . . 4 . 5 . . . . 4 . . . . 4 . . . 2 Tunnel 4 | . . . 4 . . . . . . . . . . . . . . . . Fedlink 15 | . . . . . 5 . . . . 4 . . . . 4 . . . 2 Scanalyzers . | . . . . . . . . . . . . . . . . . . . . Garrison Access . | . . . . . . . . . . . . . . . . . . . . Data Cores Recovered . | . . . . . . . . . . . . . . . . . . . . Used . | . . . . . . . . . . . . . . . . . . . . Hacking Detections 54 | . 1 . 5 . 5 . . . . 6 . . . . 8 7 5 10 7 Full Trace Events 9 | . . . 1 . 1 . . . . 1 . . . . . . 1 3 2 Feedback Events 1 | . . . . . . . . . . . . . . . . . 1 . . Corruption 1 | . . . . . . . . . . . . . . . . . 1 . . Feedback Blocked 1 | . . . . . . . . . . . . . . . . . . 1 . Robot Schematics Acquired . | . . . . . . . . . . . . . . . . . . . . Robots Built . | . . . . . . . . . . . . . . . . . . . . Authchips . | . . . . . . . . . . . . . . . . . . . . Time . | . . . . . . . . . . . . . . . . . . . . Total Robot Build Rating . | . . . . . . . . . . . . . . . . . . . . Part Schematics Acquired 12 | . . . . . 1 . . 4 . . . . . . 1 3 . 3 . Parts Built 4 | . . . . . . . . . . 4 . . . . . . . . . Authchips . | . . . . . . . . . . . . . . . . . . . . Time 181 | . . . . . . . . . . 181 . . . . . . . . . Total Part Build Rating 30 | . . . . . . . . . . 30 . . . . . . . . . Part Studies Acquired 7 | . . . . . . . . . . 3 . . . . 1 2 . 1 . Parts Repaired . | . . . . . . . . . . . . . . . . . . . . Time . | . . . . . . . . . . . . . . . . . . . . Parts Recycled . | . . . . . . . . . . . . . . . . . . . . Recycled Matter . | . . . . . . . . . . . . . . . . . . . . Retrieved Matter . | . . . . . . . . . . . . . . . . . . . . Retrieved Components . | . . . . . . . . . . . . . . . . . . . . Parts Scanalyzed 2 | . . . . . . . . . . . . . . . . 1 . 1 . Part Schematics Acquired 2 | . . . . . . . . . . . . . . . . 1 . 1 . Parts Damaged . | . . . . . . . . . . . . . . . . . . . . Bothacking | -11 -10 -10 -7 -7 -5 -5 -5 -5 -4 -4 -4 -4 -4 -3 -3 -3 -2 -2 -2 ------------ Run | Yrd Mat Sub Rec Scr Fac Upp Upp Zhi Pro Fac Upp Upp War Pro Res Tes Res Qua Frg Used RIF Installer . | . . . . . . . . . . . . . . . . . . . . Robots Hacked 3 | . . . . . . . . . . . . . . . 1 . . 1 1 Non-combat . | . . . . . . . . . . . . . . . . . . . . Combat 3 | . . . . . . . . . . . . . . . 1 . . 1 1 Robot Hacks Applied . | . . . . . . . . . . . . . . . . . . . . Relay Couplers Released 3 | . . . . . . . . . . 3 . . . . . . . . . Machine Destruction 3 | . . . . . . . . . . 3 . . . . . . . . . Fabnet Peak Effective % 3 | . . . . . . . . . . . . . . 3 3 3 1 1 1 Autooverrided 3 | . . . . . . . . . . . . . . . 1 . . 1 1 Robots Rewired 6 | . . . . . . . . . . . . . 5 . . 1 . . . Allies Hacked 1 | . . . . . . . . . . . . . 1 . . . . . . Hacks Repelled . | . . . . . . . . . . . . . . . . . . . . Allies | -11 -10 -10 -7 -7 -5 -5 -5 -5 -4 -4 -4 -4 -4 -3 -3 -3 -2 -2 -2 -------- Run | Yrd Mat Sub Rec Scr Fac Upp Upp Zhi Pro Fac Upp Upp War Pro Res Tes Res Qua Frg Total Allies 13 | . . . . . . 2 . . . 1 . . 5 . 1 2 . 1 1 Largest Group 5 | . . . . . . 2 . . . 1 . . 5 . 1 1 . 1 1 Highest-Rated Group 233 | . . . . . . 56 . . . 10 . . 233 . 56 125 . 58 10 Highest-Rated Ally 125 | . . . . . . 31 . . . 10 . . 49 . 56 125 . 58 10 Total Orders 5 | . . . . . . . . . . . . . 5 . . . . . . STAY 5 | . . . . . . . . . . . . . 5 . . . . . . Ally Attacks 18 | . . . . . . . . . . . . . 8 . 1 9 . . . Total Damage 2953 | . . . . . . . . . . . . . 33 . 41 2879 . . . Kills 14 | . . . . . . . . . . . . . . . . 14 . . . Allies Corrupted . | . . . . . . . . . . . . . . . . . . . . Allies Melted 2 | . . . . . . . . . . . . . . . . . . . 2 Intel | -11 -10 -10 -7 -7 -5 -5 -5 -5 -4 -4 -4 -4 -4 -3 -3 -3 -2 -2 -2 ------- Run | Yrd Mat Sub Rec Scr Fac Upp Upp Zhi Pro Fac Upp Upp War Pro Res Tes Res Qua Frg Active Infowar (turns) 3352 | . . 715 . . 162 . . . . . . . 69 103 371 278 133 438 1083 Optics 3189 | . . 715 . . . . . . . . . . 68 103 371 278 133 438 1083 Sensors 449 | . . . . . 162 . . . . . . . . . . . . . 287 Cloaking 1441 | . . . . . . . . . . . . . 1 . 298 278 133 436 295 Jamming 562 | . . . . . . . . . . . . . . . . . . 273 289 ECM 281 | . . . . . . . . . . . . . . . . . . . 281 Robot Analysis Total 13 | . . . . 7 . . . 4 . . . . . . . . . 1 1 Derelict Logs Recovered 12 | . . 2 . 3 . 1 1 . 2 . 1 2 . . . . . . . Drone Launches . | . . . . . . . . . . . . . . . . . . . . Drone Recoveries . | . . . . . . . . . . . . . . . . . . . . Exploration | -11 -10 -10 -7 -7 -5 -5 -5 -5 -4 -4 -4 -4 -4 -3 -3 -3 -2 -2 -2 ------------- Run | Yrd Mat Sub Rec Scr Fac Upp Upp Zhi Pro Fac Upp Upp War Pro Res Tes Res Qua Frg Turns Passed 12029 | 2 518 2582 877 3025 696 185 173 77 592 311 96 137 286 103 371 278 133 438 1149 Spaces Moved 15546 | 1 247 1459 530 1588 464 431 338 161 1007 946 283 434 927 384 1697 1094 473 1415 1667 Core 58 | . . . . . . . . . . . . . . . . . . . 58 Treads 2596 | . 119 1459 530 277 211 . . . . . . . . . . . . . . Legs 486 | 1 128 . . . . . . . . . . . . . . . . . 357 Wheels 1311 | . . . . 1311 . . . . . . . . . . . . . . . Hover . | . . . . . . . . . . . . . . . . . . . . Flight 11095 | . . . . . 253 431 338 161 1007 946 283 434 927 384 1697 1094 473 1415 1252 Fastest Speed 7 | 120 120 160 160 135 40 37 37 27 27 19 19 19 19 19 7 14 17 17 26 Average Speed 63 | 120 139 160 160 188 122 37 39 33 27 21 19 19 20 19 14 14 17 19 46 Slowest Speed 320 | 120 160 160 160 320 240 40 117 103 27 25 19 22 22 19 15 17 17 27 200 Overloaded Moves 32 | . . . . . . . . . . . . . . . 32 . . . . Propulsion Burnouts . | . . . . . . . . . . . . . . . . . . . . Robots Hopped 102 | . . . . . 10 . . . . 21 . . . . 25 16 5 15 10 Potential Cave-ins 2 | . . . . . . . . . . . . . . . . . . 2 . Cave-ins Triggered . | . . . . . . . . . . . . . . . . . . . . Exploration Rate (%) 59 | 1 42 67 90 93 17 63 52 62 82 35 39 61 95 53 60 94 24 93 62 Regions Visited 19 Branch Regions 14 Pre-discovered Areas 10 | . . . 4 1 1 . . 3 1 . . . . . . . . . . Known Exits Taken 12 | . . . . . 1 1 1 1 1 1 1 1 . 1 1 1 1 . . Unknown Exits Taken 7 | 1 1 1 1 1 . . . . . . . . 1 . . . . 1 . Scrap Searched 22 | . . 6 . 2 . 3 2 . 2 . 3 2 . 2 . . . . . Spaces Dug 162 | . . . . . . 2 4 . 115 3 . . . 10 5 7 4 12 . Terrain Destroyed 308 | . 11 31 . . 86 2 4 . 130 3 . . . 10 5 7 4 12 3 Melee 162 | . . . . . . 2 4 . 115 3 . . . 10 5 7 4 12 . Projectile 5 | . . 2 . . . . . . . . . . . . . . . . 3 AOE 141 | . 11 29 . . 86 . . . 15 . . . . . . . . . . Terrain Rammed . | . . . . . . . . . . . . . . . . . . . . Walls Destroyed . | . . . . . . . . . . . . . . . . . . . . Machines Disabled . | . . . . . . . . . . . . . . . . . . . . Actions | -11 -10 -10 -7 -7 -5 -5 -5 -5 -4 -4 -4 -4 -4 -3 -3 -3 -2 -2 -2 --------- Run | Yrd Mat Sub Rec Scr Fac Upp Upp Zhi Pro Fac Upp Upp War Pro Res Tes Res Qua Frg Total 16892 | 1 362 1584 552 1634 539 452 361 183 1140 1012 313 471 1019 396 1762 1167 501 1519 1924 Wait 505 | . 63 7 2 . 26 12 4 . 3 51 24 26 47 . 56 25 17 38 104 Move 15343 | . 246 1458 529 1587 446 430 337 160 1006 909 282 433 926 383 1648 1062 463 1387 1651 Hop 82 | . . . . . 7 . . . . 15 . . . . 23 15 4 12 6 Pick Up 86 | . 8 15 5 17 5 . 2 3 1 2 . . 3 . 1 9 2 8 5 Fast Attach 123 | . 2 3 2 2 7 3 2 10 1 5 . . 10 1 5 13 1 9 47 Attach 43 | . . 6 1 4 11 2 2 2 1 2 . . 1 . 2 1 1 4 3 Detach 15 | . . . 1 3 3 2 . . 1 1 . . . . . 2 . . 2 Swap 32 | 1 5 10 2 4 . . . . . . . 1 1 . 3 1 1 2 1 Drop 147 | . 6 15 5 17 10 1 3 8 2 3 . 1 12 1 6 18 2 14 23 Fire 184 | . 31 68 5 . 24 . . . 2 . . . . . . . . . 54 Melee 264 | . . 2 . . . 2 11 . 123 9 7 10 1 11 18 20 10 30 10 Ram . | . . . . . . . . . . . . . . . . . . . . Kick 2 | . . . . . . . . . . . . . . . . . . . 2 Crush 1 | . 1 . . . . . . . . . . . . . . . . . . Escape Stasis 36 | . . . . . . . . . . 15 . . . . . . . 15 6 Rewire 19 | . . . . . . . . . . . . . 18 . . 1 . . . Trap . | . . . . . . . . . . . . . . . . . . . . Miscellaneous 10 | . . . . . . . . . . . . . . . . . . . 10 Route ------- -11/Scrapyard -10/Materials (discovered 3 exits: [*Mat] / [*Min] / *Sub) -10/Subcaves (discovered 2 exits: [*Mat] / *Rec) -7/Recycling (discovered 2 exits: *Fac / *Scr) -7/Scraptown (discovered 2 exits: *Fac x2) -5/Factory (discovered 3 exits: *Fac / *Upp x2) -5/Upper Caves -5/Upper Caves -5/Zhirov -4/Proximity Caves -4/Factory (discovered 5 exits: *Res x2 / *Upp x2 / Arm) -4/Upper Caves -4/Upper Caves -4/Warlord -3/Proximity Caves -3/Research (discovered 4 exits: *Res x3 / *Tes) -3/Testing -2/Research (discovered 2 exits: *Acc / *Qua) -2/Quarantine (discovered 3 exits: *Acc / [*Sec] / *Frg) -2/Protoforge (discovered 1 exit: Acc) History --------- Turn | Location | Event 3 | -11/Scrapyard | Discovered new exit (range 0) 3 | -11/Scrapyard | Entered Materials 204 | -10/Materials | Discovered new exit (range 16) 317 | -10/Materials | Build established: Mutant 426 | -10/Materials | Discovered new exit (range 16) 505 | -10/Materials | Discovered new exit (range 6) 521 | -10/Materials | Entered Subcaves 826 | -10/Subcaves | Visited 4L-MR0's lab 852 | -10/Subcaves | Found Rainbow Chip 1026 | -10/Subcaves | Shifting Twisted Machinery released Sub. Optics 1040 | -10/Subcaves | Shifting Twisted Machinery released Spk. Treads 1090 | -10/Subcaves | Discovered new exit (range 13) 1230 | -10/Subcaves | Disturbed a concealed Subdweller 1304 | -10/Subcaves | Shifting Twisted Machinery released Sub. Optics 1307 | -10/Subcaves | Shifting Twisted Machinery released Scrap Shield 1316 | -10/Subcaves | Discovered new exit (range 17) 1340 | -10/Subcaves | Shifting Twisted Machinery released Ripper 1340 | -10/Subcaves | Shifting Twisted Machinery released Hvy. Battle Rifle 1944 | -10/Subcaves | Lost 3 parts (1n1u1w) 2886 | -10/Subcaves | Core integrity fell below 50% 3103 | -10/Subcaves | Entered Recycling 3178 | -7/Recycling | Build established: Scavenger-Mutant 3439 | -7/Recycling | Discovered new exit (range 10) 3863 | -7/Recycling | Build established: Mutant 3867 | -7/Recycling | Core integrity fell below 20% 3944 | -7/Recycling | Scanned before Scraplab entrance 3966 | -7/Recycling | Entered Scraplab 3979 | -7/Recycling | Discovered new exit (range 2) 3980 | -7/Recycling | Entered Scraptown 4038 | -7/Scraptown | Learned location of Extension (-6) 4064 | -7/Scraptown | Heard Great Nut preacher, LISTEN AND RECITE! 4377 | -7/Scraptown | Scanned Subdweller tech in exchange for log data 4382 | -7/Scraptown | Learned Research security intel 4383 | -7/Scraptown | Learned location of 1 exit from Research 4406 | -7/Scraptown | Discovered new exit (range 5) 4523 | -7/Scraptown | Visited TADAMA 4601 | -7/Scraptown | Visited Shadow of the Wyrm 4614 | -7/Scraptown | Visited Fellowship of the Rings 4656 | -7/Scraptown | Visited UFD Registry 4707 | -7/Scraptown | Visited The Evicted 4745 | -7/Scraptown | Visited Symbiants 4819 | -7/Scraptown | Visited Comm Corps 5393 | -7/Scraptown | Registered with UFD as "Gunchaser" 5420 | -7/Scraptown | Visited Cyclists 5453 | -7/Scraptown | Entered Cyclist Reading Room 5566 | -7/Scraptown | Visited Junk Repository 5697 | -7/Scraptown | Visited Analyses Database 5752 | -7/Scraptown | Visited Curators Association 5844 | -7/Scraptown | Visited Derelict Rescue Squad 5857 | -7/Scraptown | Found DRS Beacon 5927 | -7/Scraptown | Visited Supply Room 5986 | -7/Scraptown | Visited Scrap Suit Storage 6009 | -7/Scraptown | Found Scrap Suit 6052 | -7/Scraptown | Visited Junk Repository 6167 | -7/Scraptown | Delivered Scrap Shield to a Scientist 6364 | -7/Scraptown | Visited Observation Area 6778 | -7/Scraptown | Discovered new exit (range 5) 6914 | -7/Scraptown | Met Optimus 6914 | -7/Scraptown | Accepted into 0bPrime 7005 | -7/Scraptown | Entered Factory 7005 | -5/Factory | Evolved 10 slots: Power x1, Propulsion x2, Utility x7 7506 | -5/Factory | Spotted B-75 Beast 7546 | -5/Factory | Destroyed B-75 Beast 7560 | -5/Factory | Attached Rainbow Chip, gained temporary slots: Power, Propulsion, Utility, Weapon 7575 | -5/Factory | Lost 7 parts (1p2n3u1w) 7603 | -5/Factory | Loaded intel: 8 recycling unit locations 7604 | -5/Factory | Learned location of Protoforge (-2) 7660 | -5/Factory | Discovered new exit (range 10) 7663 | -5/Factory | Identified exit to Factory 7680 | -5/Factory | Identified exit to Upper Caves 7698 | -5/Factory | Destroyed 7 combat bots 7701 | -5/Factory | Entered Upper Caves 7703 | -5/Upper Caves | UFD Scientist delivered a prototype 7703 | -5/Upper Caves | Found Prototype Protection 7703 | -5/Upper Caves | Identified Enh. Scrap Shield 7779 | -5/Upper Caves | Learned Factory interactive machine intel 7790 | -5/Upper Caves | Discovered new exit (range 12) 7850 | -5/Upper Caves | Identified exit to Upper Caves 7853 | -5/Upper Caves | Entered an active Warlord outpost 7854 | -5/Upper Caves | A Commander dispatched an escort 7858 | -5/Upper Caves | Learned Armory emergency access door positions 7858 | -5/Upper Caves | Learned Extension stockpile data 7858 | -5/Upper Caves | Learned Factory garrison access intel 7859 | -5/Upper Caves | Build established: Hacker-Mutant 7886 | -5/Upper Caves | Entered another Upper Caves area 7886 | -5/Upper Caves | Accompanied by 2 allies 7887 | -5/Upper Caves | Commander's escort returned to base 7887 | -5/Upper Caves | Commander's escort returned to base 7891 | -5/Upper Caves | Encountered a Warlord checkpoint 7968 | -5/Upper Caves | Found Botcube 8050 | -5/Upper Caves | Learned location of 1 exit from Factory 8056 | -5/Upper Caves | Discovered new exit (range 9) 8059 | -5/Upper Caves | Identified exit to Zhirov 8059 | -5/Upper Caves | Entered Zhirov 8059 | -5/Zhirov | Discovered new exit (range 3) 8074 | -5/Zhirov | Learned location of Quarantine (-2) 8074 | -5/Zhirov | Learned location of Command (-1) 8088 | -5/Zhirov | Found Alien Artifact 8088 | -5/Zhirov | Identified Integrated Dissipator 8088 | -5/Zhirov | Installed Integrated Dissipator, increased core heat dissipation (+20) 8125 | -5/Zhirov | Found Alien Artifact 8136 | -5/Zhirov | Identified exit to Proximity Caves 8136 | -5/Zhirov | Entered Proximity Caves 8182 | -4/Proximity Caves | Learned Research trap positions 8230 | -4/Proximity Caves | Discovered exit to Factory (range 15) 8390 | -4/Proximity Caves | Build established: Hacker-Sprinter 8728 | -4/Proximity Caves | Entered Factory 8728 | -4/Factory | Evolved 2 slots: Propulsion x2 8729 | -4/Factory | Identified exit to Research 8730 | -4/Factory | Loaded intel: 53 interactive machine locations 8731 | -4/Factory | Loaded intel: 4 garrison access locations 8892 | -4/Factory | Fabricated Q-thruster (x2) 8907 | -4/Factory | Loaded intel: 8 recycling unit locations 8930 | -4/Factory | Identified exit to Upper Caves 8930 | -4/Factory | Identified exit to Armory 8943 | -4/Factory | Fabricated Adv. Reaction Control System (x2) 8969 | -4/Factory | Found Exp. Hacking Suite 9005 | -4/Factory | Discovered exit to Research (range 8) 9039 | -4/Factory | Entered Upper Caves 9069 | -4/Upper Caves | Identified exit to Upper Caves 9083 | -4/Upper Caves | Spotted B-86 Titan 9135 | -4/Upper Caves | Entered another Upper Caves area 9215 | -4/Upper Caves | Learned location of 1 exit from Research 9249 | -4/Upper Caves | Discovered new exit (range 8) 9251 | -4/Upper Caves | Identified exit to Warlord 9272 | -4/Upper Caves | Entered Warlord 9280 | -4/Warlord | System corruption cleaned by Quarantine Array 9285 | -4/Warlord | Discovered new exit (range 15) 9425 | -4/Warlord | Found Prototype Special Weapon 9425 | -4/Warlord | Identified RU-N14's Throwing Claymores v3 9451 | -4/Warlord | Visited the Vortex Lab 9453 | -4/Warlord | Found Prototype Piercing Weapon 9453 | -4/Warlord | Identified Vortex Lance 9468 | -4/Warlord | Warlord's base attacked by MAIN.C 9487 | -4/Warlord | Found Prototype Device 9487 | -4/Warlord | Identified Exp. Cloaking Device 9490 | -4/Warlord | Found Prototype Processor 9490 | -4/Warlord | Identified Spectral Analyzer 9494 | -4/Warlord | Found Prototype Device 9494 | -4/Warlord | Identified Thermal Barrier 9503 | -4/Warlord | Found Prototype Hackware 9519 | -4/Warlord | Rebuked by Warlord 9548 | -4/Warlord | Opened side exit 9558 | -4/Warlord | Entered Proximity Caves 9618 | -3/Proximity Caves | Spotted B-86 Titan 9633 | -3/Proximity Caves | Attracted the attention of an 0b10 checkpoint 9660 | -3/Proximity Caves | Discovered exit to Research (range 8) 9661 | -3/Proximity Caves | Entered Research 9661 | -3/Research | Evolved 2 slots: Propulsion x1, Utility x1 9662 | -3/Research | Identified exit to Testing 9663 | -3/Research | Identified exit to Research 9664 | -3/Research | Loaded intel: 100 trap records 9809 | -3/Research | Loaded intel: 5 recycling unit locations 9823 | -3/Research | Discovered exit to Research (range 22) 9911 | -3/Research | Search patrols dispatched 9972 | -3/Research | Spotted B-86 Titan 10024 | -3/Research | Spotted B-86 Titan 10032 | -3/Research | Entered Testing 10058 | -3/Testing | Found Prototype Launcher 10060 | -3/Testing | Identified Tactical Quantum Warhead 10060 | -3/Testing | Identified System Mapper 10060 | -3/Testing | Identified Transdimensional Reconstructor 10130 | -3/Testing | Discovered exit to Research (range 12) 10178 | -3/Testing | System corruption reached 10% 10182 | -3/Testing | Found Prototype Energy Cannon 10182 | -3/Testing | Identified Cld. Nova Cannon 10193 | -3/Testing | Spotted Striker 10193 | -3/Testing | Spotted Striker 10206 | -3/Testing | Found Prototype Energy Cannon 10218 | -3/Testing | Rewired PD-WMKQ6P9LAH 10305 | -3/Testing | Found Prototype Energy Gun 10305 | -3/Testing | Identified Tachyon Dispersion Ray 10310 | -3/Testing | Entered Research 10310 | -2/Research | Evolved 1 slot: Utility x1 10311 | -2/Research | Identified exit to Quarantine 10340 | -2/Research | Garrison activated, responded to threat 10375 | -2/Research | Spotted B-90 Cyclops 10406 | -2/Research | Discovered new exit (range 8) 10443 | -2/Research | Entered Quarantine 10445 | -2/Quarantine | Found Prototype Processor 10445 | -2/Quarantine | Identified Exp. Core Analyzer 10450 | -2/Quarantine | Found Exp. Core Analyzer 10567 | -2/Quarantine | Found Prototype Device 10569 | -2/Quarantine | Identified Exp. Transmission Jammer 10681 | -2/Quarantine | Found Alien Artifact 10708 | -2/Quarantine | System corruption reached 10% 10720 | -2/Quarantine | Discovered new exit (range 3) 10764 | -2/Quarantine | Found Alien Artifact 10770 | -2/Quarantine | Found Prototype Processor 10770 | -2/Quarantine | Identified Exp. Terrain Scan Processor 10786 | -2/Quarantine | Identified Phase Redirector 10786 | -2/Quarantine | Identified Core Reset Matrix 10839 | -2/Quarantine | Found Alien Reactor 10839 | -2/Quarantine | Identified Matter Drive 10860 | -2/Quarantine | Spotted Fortress 10879 | -2/Quarantine | Discovered new exit (range 5) 10879 | -2/Quarantine | Discovered new exit (range 6) 10881 | -2/Quarantine | Entered Protoforge 10913 | -2/Protoforge | Identified exit to Access 10945 | -2/Protoforge | Spotted B-90 Cyclops 10978 | -2/Protoforge | Identified Potential Cannon 10983 | -2/Protoforge | Spotted Hotshot 10984 | -2/Protoforge | Spotted Hotshot 11001 | -2/Protoforge | Spotted Hotshot 11008 | -2/Protoforge | Spotted Hotshot 11022 | -2/Protoforge | Spotted Hotshot 11176 | -2/Protoforge | Superfortress began startup sequence 11183 | -2/Protoforge | Spotted AP7-3 11184 | -2/Protoforge | Spotted AP7-3 11200 | -2/Protoforge | Spotted EXE-6 11201 | -2/Protoforge | Spotted SKR-2 11202 | -2/Protoforge | Spotted EXE-6 11202 | -2/Protoforge | Spotted SKR-2 11202 | -2/Protoforge | Spotted SKR-2 11216 | -2/Protoforge | Core integrity fell below 50% 11227 | -2/Protoforge | UFD initiated attack on Protoforge (Readiness: High) 11227 | -2/Protoforge | Loaded intel: 3 recycling unit locations 11246 | -2/Protoforge | Core integrity fell below 20% 11247 | -2/Protoforge | Lost 18 parts (3p6n8u1w) 11248 | -2/Protoforge | Spotted EXE-6 11249 | -2/Protoforge | Spotted EXE-6 11255 | -2/Protoforge | Found Prototype Processor 11255 | -2/Protoforge | Identified Exp. Melee Analysis Suite 11263 | -2/Protoforge | Optimus greeted in Protoforge 11312 | -2/Protoforge | Found Prototype Ballistic Gun 11312 | -2/Protoforge | Identified Cep. XC Strikerail 11315 | -2/Protoforge | Found Prototype Energy Gun 11315 | -2/Protoforge | Identified Enh. Gamma Rifle 11318 | -2/Protoforge | Found Prototype Device 11318 | -2/Protoforge | Identified Exp. ECM Suite 11324 | -2/Protoforge | Lost 9 allies 11329 | -2/Protoforge | Found Cep. XC Strikerail 11342 | -2/Protoforge | Found Cep. XC Strikerail 11360 | -2/Protoforge | Met 7R-MNS 11380 | -2/Protoforge | Found UFD Drillbomb 11462 | -2/Protoforge | Spotted Executioner 11463 | -2/Protoforge | Spotted Striker 11484 | -2/Protoforge | Installed UFD Drillbomb at designated target 11484 | -2/Protoforge | UFD reported confirmed Drillbomb installation 11523 | -2/Protoforge | Lost 8 allies 11530 | -2/Protoforge | Found UFD Drillbomb 11540 | -2/Protoforge | Spotted Striker 11542 | -2/Protoforge | Spotted Striker 11543 | -2/Protoforge | Spotted Striker 11543 | -2/Protoforge | Spotted Overlord 11553 | -2/Protoforge | Build established: Scavenger-Mutant 11563 | -2/Protoforge | Destroyed Striker 11572 | -2/Protoforge | Destroyed Overlord 11584 | -2/Protoforge | UFD reported confirmed Drillbomb installation 11585 | -2/Protoforge | Spotted Executioner 11587 | -2/Protoforge | Spotted Striker 11619 | -2/Protoforge | Lost 5 parts (1p2u2w) 11625 | -2/Protoforge | Lost 8 allies 11725 | -2/Protoforge | Found Exp. Core Analyzer 11827 | -2/Protoforge | Spotted Executioner 11853 | -2/Protoforge | Spotted Executioner 11861 | -2/Protoforge | Spotted Executioner 11866 | -2/Protoforge | Found 0bPrime Scrap Suit 11928 | -2/Protoforge | Lost 9 allies 11937 | -2/Protoforge | Spotted Striker 11938 | -2/Protoforge | Spotted Striker 11941 | -2/Protoforge | Spotted Striker 11955 | -2/Protoforge | Found Prototype Slashing Weapon 11955 | -2/Protoforge | Identified Exp. Terror Saw 11959 | -2/Protoforge | Found Prototype Device 11959 | -2/Protoforge | Identified Cep. Antimissile System 11962 | -2/Protoforge | Found Cep. Antimissile System 11966 | -2/Protoforge | Found Prototype Storage 11966 | -2/Protoforge | Identified Cep. Chromion Battery 11992 | -2/Protoforge | Spotted Decapitator 11992 | -2/Protoforge | Spotted Decapitator 11992 | -2/Protoforge | Spotted Decapitator 11992 | -2/Protoforge | Spotted Decapitator 12004 | -2/Protoforge | Spotted V337-x 12004 | -2/Protoforge | Spotted V267-a 12005 | -2/Protoforge | Lost 4 parts (1p1n1u1w) 12007 | -2/Protoforge | Spotted Immortal 12007 | -2/Protoforge | Spotted Immortal 12010 | -2/Protoforge | Spotted V992-x 12030 | -2/Protoforge | Destroyed by Decapitator with Experimental Terror Saw Last Messages --------------- 11974_ Knocked back. 11974_ Exp. Terror Saw destroyed. 11974_ Impulse Thruster Array+ destroyed. 11974_ Knocked back. 11974_ Acquired 10 matter. 11975_ Superfortress breaks down Prototype Ballistic Cannon. 11975_ Superfortress assembles Prototype Energy Cannon. 11975_ Superfortress assembles Cld. Nova Cannon. 11975_ Superfortress assembles Prototype Ballistic Cannon. 11998_ System corrupted: Energy discharge (-412). 11999_ 0bP_NET: Lugger 625 inbound, all units not involved in other operations escort to target. 12014_ System corrupted: Heat flow error (+170). 12024_ Penetrated by Slug. 12029_ Decapitator springs to life. 12029_ Decapitator knocked back. 12029_ Decapitator destroyed. 12029_ Decapitator knocked back. 12030_ System corrupted: Matter fused (-10). 12030_ Decapitator springs to life. Map ----- +----------------------------------------------------+ | ??????????????# #???????????????????? "#? | | ??????????????# #?????????????????#"" "#? | | ??????????????# ################### ""#? | | ??????????????# """"#? | | ??????????????# """"#? | | ??????????????# #########++######## ""#? | | ??????????????# #??????" ???# "#? | | ??????????????# #?????#" " """""""##? | | ??????????????# #?????#" " " " "!!! ! "#? | | ??????????????# #?????#"""""""# " "!! ! !"#? | | ??????????????# #?????######### #####"""""""#? | | ??????????????# #?????????????#####????########? | | ??????????????# #??????????????????????????????? | | ??????????????# #??????????????????????????????? | | ??????????????# #??????????????????????????????? | | ??????????????# #??????????????????????????????? | | ??????????????# #??????????????????????????????? | | ??????????????# #??????????????????????????????? | | ??????????????# #??????????????????????????????? | | ??????????????# #??????????????????????????????? | | ??????????????# #??????????????????????????????? | | ??????????????# #??????????????????????????????? | | ??????????????# #???????????????????????? "??? | | ??????????????# ################## ""???? | | ??????????????# =/ %* ""???? | | ??????????????# c@ == "??? | | ??????????????# ###########%*c !#"" "?? | | ??????????????# #??????????????"#??????????????? | | ??????????????# #??????????????????????????????? | | ??????????????# #??????????????????????????????? | | ??????????????# #??????????????????????????????? | | ??????????????# #??????????????????????????????? | | ??????????????# #??????????????????????????????? | | ??????????????# #??????????????????????????????? | | ??????????????# #??????????????????????????????? | | ??????????????# #??????????????????????????????? | | ??????????????# #??????????????????????????????? | | ??????????????# #??????????????????????????????? | | ??????????????# #??????????????????????????????? | | ??????????????# #??????????????????????????????? | | ??????????????# #??????????????????????????????? | | ??????????????# #??????????????????????????????? | | ??????????????# #??????????????????????????????? | | ??????????????# #??????????????????????????????? | | ??????????????# ################???????????????? | | ??????????????# ???????????? | | ??????????????# ???????????? | | ??????????????# #########++#####???????????????? | | ??????????????# #??????????????????????????????? | | ??????????????# #??????????????????????????????? | +----------------------------------------------------+ Best States ------------- Heat Dissipation 107 Energy Generation 66 Energy Capacity 2415 Matter Stores 300 Matter Capacity 300 Sight Range 24 Robot Scan Range 16 Terrain Scan Density 10 ECM Strength 3 Jamming Range 22 Cloak Strength 4 Power Amplification 40 Additional Mass Support 9 EM Shielding 4 Armor Coverage 950 Propulsion Shielding 33 Utility Shielding 90 Point Defense Rating 480 Evasion (%) 78 Melee Accuracy 12 Core Analysis 8 Recoil Reduction 9 Offensive Hacking 62 Defensive Hacking 14 Item Schematics ----------------- Adv. Shield Generator | -5/Factory | Hacked Assault Drone Bay | -5/Zhirov | Free Exp. Heat Sink | -5/Zhirov | Free Exp. Optical Array | -5/Zhirov | Free Imp. Arc Thrower | -5/Zhirov | Free Lgt. Quantum Reactor | -3/Research | Hacked Diametric Drive | -3/Testing | Scanalyzed Lgt. Regenerative Plating | -3/Testing | Hacked Hvy. Regenerative Plating | -3/Testing | Hacked Adv. Reaction Control System | -2/Quarantine | Scanalyzed Lrg. Storage Unit | -2/Quarantine | Hacked Imp. Q-thruster | -2/Quarantine | Hacked Robot Schematics ------------------ None Fabricated ------------ Q-thruster | x2 | -4/Factory | Preloaded Adv. Reaction Control System | x2 | -4/Factory | Preloaded Repaired ---------- Nothing Studied --------- Q-thruster | -4/Factory | Hacked Lance | -4/Factory | Hacked Lgt. Antimatter Reactor | -4/Factory | Hacked Lgt. Ion Engine | -3/Research | Hacked Impulse Thruster | -3/Testing | Hacked Impulse Thruster Array | -3/Testing | Hacked Lgt. Quantum Reactor | -2/Quarantine | Hacked Alien Tech Used ----------------- Integrated Dissipator Matter Drive Achievements -------------- Art Critic Bob, First Of His Name Express Service Fine I'll Do It Myself Fitting Room Hulk Smash I Laugh At Your Crits Into The Breach Link The Feds Loot Taster Mistaken Identity Sprinter Super-what Now? We Are One Well Done Challenges ------------ None Game ------ Seed FlightMicroShooter Manual? 0 Play Time 03:08:25 Cumulative 461.1 hours Start 2026.01.14 @ 02:02:14 End 2026.01.15 @ 03:01:48 Sessions 15 Manual Loads 0 Difficulty Rogue Special Mode None Game No. 468 Rogue 468 Adventurer 0 Explorer 0 Win Type - Total 31 Types 16/3/6/1/2/0/3/0/0/0 Lore% 90 Gallery% 81 Achievement% 56 Wizard Run 0 Options --------- Layout 0 ASCII 0 Keyboard 0 Movement Arrows Keybinds 0 Fullscreen 2 Font 24/Smallcaps Map View 76x50 Zoom Use 0% Tactical HUD 1 Map Filters NONE Filters NONE Steam 1 RUN: 1acef793-edef-4f7a-b018-430a18e98dc3